fUSD/lending_fUSD_20260202
["ID","MTS","AMOUNT","RATE_DAILY","PERIOD"]
[404331760,1770064243895,-500.0,0.00013973,2]
[404331761,1770064243904,-500.0,0.00013973,2]
[404331762,1770064243914,-500.0,0.00013973,2]
[404331763,1770064243924,-500.0,0.00013973,2]
[404331764,1770064243933,-500.0,0.00013973,2]
[404331765,1770064243943,-500.0,0.00013973,2]
[404331766,1770064243952,-500.0,0.00013973,2]
[404331767,1770064243961,-490.75391952,0.00013973,2]
[404331768,1770064243970,-500.0,0.00013973,2]
[404331769,1770064243980,-500.0,0.00013973,2]
[404331770,1770064243989,-163.90719075,0.00013973,2]
[404331771,1770064243998,-500.0,0.00013973,2]
[404331772,1770064244008,-500.0,0.00013973,2]
[404331773,1770064244020,-500.0,0.00013973,2]
[404331774,1770064244030,-500.0,0.00013973,2]
[404331775,1770064244040,-500.0,0.00013973,2]
[404331776,1770064244051,-500.0,0.00013973,2]
[404331777,1770064244060,-500.0,0.00013973,2]
[404331778,1770064244070,-460.07091613,0.00013973,2]
[404331779,1770064244080,-500.0,0.00013973,2]
[404331780,1770064244091,-500.0,0.00013988,2]
[404331781,1770064244100,-458.51,0.00014152,2]
[404331782,1770064244110,-2718.23761868,0.00014156,2]
[404331783,1770064244119,-3280.56144331,0.00014195,2]
[404331784,1770064244128,-500.0,0.00014215,2]
[404331785,1770064244137,-500.0,0.00014262,2]
[404331786,1770064244148,-151.0,0.00014267,2]
[404331787,1770064244159,-256.85,0.00014275,2]
[404331788,1770064244168,-151.0,0.00014278,2]
[404331789,1770064244178,-151.0,0.00014278,2]
[404331790,1770064244187,-151.0,0.00014278,2]
[404331791,1770064244197,-151.0,0.00014292,2]
[404331792,1770064244207,-151.0,0.00014292,2]
[404331793,1770064244216,-151.0,0.00014323,2]
[404331794,1770064244225,-151.0,0.00014323,2]
[404331795,1770064244235,-46768.2618756,0.00014329,2]
[404331796,1770064244244,-10331.11610173,0.0001439,2]
[404331797,1770064244253,-458.51,0.00014425,2]
[404331798,1770064244263,-1002.28291878,0.00014521,2]
[404331799,1770064244273,-545.34481126,0.00014521,2]
[404331800,1770064244282,-1000.0,0.00014521,2]
[404331801,1770064244292,-543.53042842,0.00014521,2]
[404331802,1770064244301,-1000.0,0.00014521,2]
[404331803,1770064244311,-1000.0,0.00014521,2]
[404331804,1770064244320,-1000.0,0.00014521,2]
[404331805,1770064244330,-1000.0,0.00014521,2]
[404331806,1770064244340,-1000.0,0.00014521,2]
[404331807,1770064244353,-503.87544057,0.00014521,2]
[404331808,1770064244362,-1000.0,0.00014521,2]
[404331809,1770064244372,-1000.0,0.00014521,2]
[404331810,1770064244382,-181.57502123,0.00014521,2]
[404331811,1770064244392,-1000.0,0.00014521,2]
[404331812,1770064244404,-1000.0,0.00014521,2]
[404331813,1770064244415,-1000.0,0.00014521,2]
[404331814,1770064244425,-1000.0,0.00014521,2]
[404331815,1770064244438,-259.40505883,0.00014521,2]
[404331816,1770064244458,-1000.0,0.00014521,2]
[404331817,1770064244478,-1000.0,0.00014521,2]
[404331818,1770064244498,-1000.0,0.00014521,2]
[404331819,1770064244519,-245.04092473,0.00014521,2]
[404331820,1770064244536,-1000.0,0.00014521,2]
[404331821,1770064244548,-1001.69360348,0.00014521,2]
[404331822,1770064244557,-652.81544497,0.00014521,2]
[404331823,1770064244568,-1046.2635897,0.00014521,2]
[404331824,1770064244580,-1000.0,0.00014521,2]
[404331825,1770064244590,-1000.0,0.00014521,2]
[404331826,1770064244600,-500.0,0.00014536,2]
[404331827,1770064244611,-374.89,0.00014541,2]
[404331828,1770064244623,-868.9,0.00014567,2]
[404331829,1770064244636,-773.23,0.00014622,2]
[404331830,1770064244649,-267.0500664,0.00014636,2]
[404331831,1770064244659,-458.51,0.00014699,2]
[404331832,1770064244673,-500.0,0.00014763,2]
[404331833,1770064244684,-500.0,0.0001481,2]
[404331834,1770064244698,-868.9,0.00014841,2]
[404331835,1770064244710,-773.23,0.00014896,2]
[404331836,1770064244721,-458.51,0.00014973,2]
[404331837,1770064244731,-1186.16205934,0.00015,2]
[404331838,1770064244742,-2140.76085253,0.00015,14]
[404331839,1770064244753,-6770.64481546,0.00015,2]
[404331840,1770064244764,-369988.95313789,0.00015,3]
[404331841,1770064244774,-29378.89718232,0.00015,2]
[404331842,1770064244783,-418.0702292,0.00015,2]
[404331843,1770064244793,-1252.0,0.00015004,2]
[404331844,1770064244803,-4609.0,0.00015057,2]
[404331845,1770064244812,-155.0,0.00015067,2]
[404331846,1770064244821,-1500.0,0.00015068,2]
[404331847,1770064244830,-1506.79391477,0.00015068,2]
[404331848,1770064244840,-1500.0,0.00015068,2]
[404331849,1770064244849,-1500.0,0.00015068,2]
[404331850,1770064244858,-1582.73923754,0.00015068,2]
[404331851,1770064244868,-1500.0,0.00015068,2]
[404331852,1770064244877,-1500.0,0.00015068,2]
[404331853,1770064244886,-1539.34306558,0.00015068,2]
[404331854,1770064244895,-1500.0,0.00015068,2]
[404331855,1770064244904,-550.7159852,0.00015068,2]
[404331856,1770064244915,-223.77841226,0.00015068,2]
[404331857,1770064244925,-1500.0,0.00015068,2]
[404331858,1770064244934,-411.8365552,0.00015068,2]
[404331859,1770064244943,-1500.0,0.00015068,2]
[404331860,1770064244952,-1500.0,0.00015068,2]
[404331861,1770064244962,-1500.0,0.00015068,2]
[404331862,1770064244978,-1500.0,0.00015068,2]
[404331863,1770064244988,-1500.0,0.00015068,2]
[404331864,1770064244997,-250.20103246,0.00015084,2]
[404331865,1770064245007,-569.72,0.000151,2]
[404331866,1770064245016,-868.9,0.00015115,2]
[404331867,1770064245025,-46768.2618756,0.00015138,2]
[404331868,1770064245035,-374.89,0.00015147,2]
[404331869,1770064245044,-773.23,0.0001517,2]
[404331870,1770064245053,-458.51,0.00015247,2]
[404331871,1770064245062,-578.20924308,0.00015252,2]
[404331872,1770064245071,-174.61919141,0.00015252,2]
[404331873,1770064245080,-209.40437684,0.00015252,2]
[404331874,1770064245090,-151.0,0.00015252,2]
[404331875,1770064245099,-500.0,0.00015252,2]
[404331876,1770064245110,-500.0,0.00015252,2]
[404331877,1770064245120,-500.0,0.00015252,2]
[404331878,1770064245129,-500.0,0.00015252,2]
[404331879,1770064245138,-500.0,0.00015252,2]
[404331880,1770064245147,-500.0,0.00015252,2]
[404331881,1770064245157,-500.0,0.00015252,2]
[404331882,1770064245166,-250.0,0.00015252,2]
[404331883,1770064245175,-500.0,0.00015252,2]
[404331884,1770064245184,-250.0,0.00015252,2]
[404331885,1770064245194,-500.0,0.00015252,2]
[404331886,1770064245204,-250.0,0.00015252,2]
[404331887,1770064245214,-500.0,0.00015252,2]
[404331888,1770064245224,-250.0,0.00015252,2]
[404331889,1770064245234,-500.0,0.00015252,2]
[404331890,1770064245244,-250.0,0.00015252,2]
[404331891,1770064245258,-250.0,0.00015252,2]
[404331892,1770064245272,-209.40437684,0.00015252,2]
[404331893,1770064245282,-859.80605061,0.00015252,2]
[404331894,1770064245291,-721.12765535,0.00015252,2]
[404331895,1770064245301,-1428.38747117,0.00015252,2]
[404331896,1770064245311,-250.0,0.00015252,2]
[404331897,1770064245320,-250.0,0.00015252,2]
[404331898,1770064245329,-250.0,0.00015252,2]
[404331899,1770064245339,-322.6107,0.00015252,2]
[404331900,1770064245350,-250.0,0.00015252,2]
[404331901,1770064245359,-250.0,0.00015252,2]
[404331902,1770064245369,-250.0,0.00015252,2]
[404331903,1770064245378,-250.0,0.00015252,2]
[404331904,1770064245388,-250.0,0.00015252,2]
[404331905,1770064245398,-250.0,0.00015252,2]
[404331906,1770064245407,-250.0,0.00015252,2]
[404331907,1770064245418,-250.0,0.00015252,2]
[404331908,1770064245428,-209.40437684,0.00015252,2]
[404331909,1770064245437,-1517.64,0.000153,2]
[404331910,1770064245446,-217.15233878,0.00015307,2]
[404331911,1770064245455,-500.0,0.00015311,2]
[404331912,1770064245465,-225.18697532,0.00015362,2]
[404331913,1770064245474,-988.5,0.00015389,2]
[404331914,1770064245483,-508.63384765,0.000154,2]
[404331915,1770064245493,-233.51889341,0.00015417,2]
[404331916,1770064245503,-773.23,0.00015444,2]
[404331917,1770064245512,-242.15909246,0.00015472,2]
[404331918,1770064245522,-163.46067997,0.00015473,2]
[404331919,1770064245531,-500.0,0.00015473,2]
[404331920,1770064245540,-500.0,0.00015473,2]
[404331921,1770064245550,-500.0,0.00015473,2]
[404331922,1770064245559,-500.0,0.00015473,2]
[404331923,1770064245569,-500.0,0.00015473,2]
[404331924,1770064245578,-160.54295648,0.00015473,2]
[404331925,1770064245587,-151.07783782,0.00015473,2]
[404331926,1770064245597,-500.0,0.00015473,2]
[404331927,1770064245606,-500.0,0.00015473,2]
[404331928,1770064245615,-500.40906893,0.00015473,2]
[404331929,1770064245624,-464.35211832,0.00015473,2]
[404331930,1770064245633,-500.0,0.00015473,2]
[404331932,1770064245650,-500.0,0.00015473,2]
[404331933,1770064245705,-500.0,0.00015473,2]
[404331934,1770064245715,-559.67308476,0.00015473,2]
[404331935,1770064245724,-500.0,0.00015473,2]
[404331936,1770064245733,-200.70028911,0.00015473,2]
[404331937,1770064245742,-500.0,0.00015473,2]
[404331938,1770064245751,-500.0,0.00015473,2]
[404331939,1770064245760,-500.0,0.00015473,2]
[404331940,1770064245769,-500.0,0.00015473,2]
[404331941,1770064245778,-500.63586771,0.00015473,2]
[404331942,1770064245787,-500.0,0.00015473,2]
[404331943,1770064245797,-336.43827265,0.00015473,2]
[404331944,1770064245806,-500.0,0.00015473,2]
[404331945,1770064245815,-500.0,0.00015473,2]
[404331946,1770064245824,-500.0,0.00015473,2]
[404331947,1770064245833,-500.0,0.00015473,2]
[404331948,1770064245842,-500.0,0.00015473,2]
[404331949,1770064245851,-512.94754167,0.00015473,2]
[404331950,1770064245860,-340.09137446,0.00015473,2]
[404331951,1770064245869,-460.30125151,0.00015473,2]
[404331952,1770064245879,-163.12661798,0.00015473,2]
[404331953,1770064245888,-500.46237197,0.00015473,2]
[404331954,1770064245899,-163.34993731,0.00015473,2]
[404331955,1770064245908,-500.0,0.00015473,2]
[404331956,1770064245917,-522.30858015,0.00015473,2]
[404331957,1770064245927,-500.41005015,0.00015473,2]
[404331958,1770064245937,-160.61738464,0.00015473,2]
[404331959,1770064245946,-500.0,0.00015473,2]
[404331960,1770064245959,-500.0,0.00015473,2]
[404331961,1770064245980,-161.45537985,0.00015473,2]
[404331962,1770064245999,-500.0,0.00015473,2]
[404331963,1770064246008,-500.6120606,0.00015473,2]
[404331964,1770064246019,-500.0,0.00015473,2]
[404331965,1770064246028,-500.62768041,0.00015473,2]
[404331966,1770064246038,-500.0,0.00015473,2]
[404331967,1770064246047,-500.0,0.00015473,2]
[404331968,1770064246056,-500.0,0.00015473,2]
[404331969,1770064246065,-500.0,0.00015473,2]
[404331970,1770064246075,-500.0,0.00015473,2]
[404331971,1770064246084,-500.0,0.00015473,2]
[404331972,1770064246093,-593.37800921,0.00015473,2]
[404331973,1770064246102,-550.09529227,0.00015473,2]
[404331974,1770064246111,-500.0,0.00015473,2]
[404331975,1770064246120,-486.29318482,0.00015473,2]
[404331976,1770064246129,-168.03217975,0.00015473,2]
[404331977,1770064246138,-500.0,0.00015473,2]
[404331978,1770064246147,-500.0,0.00015473,2]
[404331979,1770064246156,-500.0,0.00015473,2]
[404331980,1770064246165,-500.0,0.00015473,2]
[404331981,1770064246175,-500.0,0.00015473,2]
[404331982,1770064246184,-574.06272579,0.00015473,2]
[404331983,1770064246194,-500.0,0.00015473,2]
[404331984,1770064246203,-500.0,0.00015473,2]
[404331985,1770064246212,-500.0,0.00015473,2]
[404331986,1770064246222,-185.46503654,0.00015473,2]
[404331987,1770064246231,-500.0,0.00015473,2]
[404331988,1770064246240,-500.0,0.00015473,2]
[404331989,1770064246249,-558.47394043,0.00015473,2]
[404331990,1770064246259,-500.0,0.00015473,2]
[404331991,1770064246268,-500.0,0.00015473,2]
[404331992,1770064246277,-500.0,0.00015473,2]
[404331993,1770064246287,-500.0,0.00015473,2]
[404331994,1770064246297,-500.0,0.00015473,2]
[404331995,1770064246306,-500.0,0.00015473,2]
[404331996,1770064246315,-500.0,0.00015473,2]
[404331997,1770064246324,-500.0,0.00015473,2]
[404331998,1770064246334,-748.74,0.00015514,2]
[404331999,1770064246346,-748.74,0.00015514,2]
[404332000,1770064246357,-748.74,0.00015514,2]
[404332002,1770064246366,-748.74,0.00015514,2]
[404332003,1770064246375,-748.75883379,0.00015514,2]
[404332004,1770064246385,-1353.09,0.00015514,2]
[404332005,1770064246395,-1353.09,0.00015514,2]
[404332006,1770064246404,-1353.09,0.00015514,2]
[404332007,1770064246413,-1353.09,0.00015514,2]
[404332008,1770064246423,-1353.32686126,0.00015514,2]
[404332009,1770064246434,-1083.53,0.00015514,2]
[404332010,1770064246443,-1083.53,0.00015514,2]
[404332011,1770064246454,-1083.53,0.00015514,2]
[404332012,1770064246463,-1083.53,0.00015514,2]
[404332013,1770064246473,-1083.73994886,0.00015514,2]
[404332014,1770064246482,-458.51,0.00015521,2]
[404332015,1770064246493,-251.11897888,0.00015527,2]
[404332016,1770064246503,-260.4103811,0.00015582,2]
[404332017,1770064246513,-1666.54524169,0.00015616,2]
[404332018,1770064246524,-2000.0,0.00015616,2]
[404332019,1770064246534,-2000.0,0.00015616,2]
[404332020,1770064246544,-1376.09004687,0.00015616,2]
[404332021,1770064246555,-1517.4616613,0.00015616,2]
[404332022,1770064246564,-2000.0,0.00015616,2]
[404332023,1770064246574,-2000.0,0.00015616,2]
[404332024,1770064246584,-2000.0,0.00015616,2]
[404332025,1770064246594,-2000.0,0.00015616,2]
[404332026,1770064246604,-1006.04407484,0.00015616,2]
[404332027,1770064246615,-2000.0,0.00015616,2]
[404332028,1770064246626,-2000.0,0.00015616,2]
[404332029,1770064246636,-159.60859955,0.00015637,2]
[404332030,1770064246648,-270.0455652,0.00015637,2]
[404332031,1770064246658,-189.9,0.00015667,2]
[404332032,1770064246667,-280.03725112,0.00015692,2]
[404332033,1770064246677,-267.0500664,0.00015724,2]
[404332034,1770064246686,-290.39862941,0.00015747,2]
[404332035,1770064246697,-374.89,0.00015753,2]
[404332036,1770064246707,-181.63,0.0001579,2]
[404332037,1770064246718,-458.51,0.00015795,2]
[404332038,1770064246730,-181.08010149,0.000158,2]
[404332039,1770064246740,-217.15233878,0.000158,2]
[404332040,1770064246750,-151.0,0.000158,2]
[404332041,1770064246761,-276.99112212,0.000158,2]
[404332042,1770064246771,-1481.23780761,0.000158,2]
[404332043,1770064246780,-301.1433787,0.00015802,2]
[404332044,1770064246790,-500.0,0.00015859,2]
[404332045,1770064246802,-1054.31792169,0.00015874,2]
[404332046,1770064246812,-1000.0,0.00015918,2]
[404332047,1770064246823,-46768.2618756,0.00015946,2]
[404332048,1770064246834,-5000.0,0.0001596,2]
[404332049,1770064246844,-271.04215544,0.0001599,2]
[404332050,1770064246854,-956.83032625,0.00016,2]
[404332051,1770064246864,-270.91542523,0.00016,2]
[404332052,1770064246874,-421.15115649,0.00016,2]
[404332053,1770064246885,-2766032.5145704,0.00016,4]
[404332054,1770064246894,-200.896366,0.00016,2]
[404332055,1770064246904,-500.0,0.00016021,2]
[404332056,1770064246914,-504.20951303,0.00016021,2]
[404332057,1770064246924,-502.15998223,0.00016021,2]
[404332058,1770064246934,-871.81162767,0.00016021,2]
[404332059,1770064246943,-1000.0,0.00016021,2]
[404332060,1770064246951,-486.90150068,0.00016021,2]
[404332061,1770064246961,-1128.44291984,0.00016021,2]
[404332062,1770064246972,-1000.0,0.00016021,2]
[404332063,1770064246981,-335.25607575,0.00016021,2]
[404332064,1770064246991,-1000.0,0.00016021,2]
[404332065,1770064247002,-1000.0,0.00016021,2]
[404332066,1770064247011,-1000.0,0.00016021,2]
[404332067,1770064247020,-1000.0,0.00016021,2]
[404332068,1770064247029,-1000.0,0.00016021,2]
[404332069,1770064247038,-1000.0,0.00016021,2]
[404332070,1770064247048,-1000.0,0.00016021,2]
[404332071,1770064247058,-500.0,0.00016021,2]
[404332072,1770064247068,-500.0,0.00016021,2]
[404332073,1770064247077,-1000.0,0.00016021,2]
[404332074,1770064247088,-500.0,0.00016021,2]
[404332075,1770064247098,-960.71724918,0.00016021,2]
[404332076,1770064247109,-1000.0,0.00016021,2]
[404332077,1770064247122,-1000.0,0.00016021,2]
[404332078,1770064247132,-494.98211284,0.00016021,2]
[404332079,1770064247143,-500.0,0.00016021,2]
[404332080,1770064247153,-1000.0,0.00016021,2]
[404332081,1770064247162,-1000.0,0.00016021,2]
[404332082,1770064247171,-1000.0,0.00016021,2]
[404332083,1770064247181,-1000.0,0.00016021,2]
[404332084,1770064247191,-964.09949899,0.00016021,2]
[404332085,1770064247201,-1000.0,0.00016021,2]
[404332086,1770064247211,-1000.0,0.00016021,2]
[404332087,1770064247220,-1000.0,0.00016021,2]
[404332088,1770064247230,-501.28378078,0.00016021,2]
[404332089,1770064247239,-1000.0,0.00016021,2]
[404332090,1770064247249,-1000.0,0.00016021,2]
[404332091,1770064247259,-1000.0,0.00016021,2]
[404332092,1770064247268,-1000.0,0.00016021,2]
[404332093,1770064247277,-1000.0,0.00016021,2]
[404332094,1770064247287,-500.0,0.00016021,2]
[404332095,1770064247297,-1000.0,0.00016021,2]
[404332096,1770064247306,-1000.0,0.00016021,2]
[404332097,1770064247316,-500.0,0.00016021,2]
[404332098,1770064247325,-1000.0,0.00016021,2]
[404332099,1770064247336,-1000.0,0.00016021,2]
[404332100,1770064247346,-458.66755852,0.00016069,2]
[404332101,1770064247356,-9999.99,0.00016116,2]
[404332102,1770064247367,-327.96194417,0.00016164,2]
[404332103,1770064247377,-2500.0,0.00016164,2]
[404332104,1770064247387,-2500.0,0.00016164,2]
[404332105,1770064247399,-1812.26829567,0.00016164,2]
[404332106,1770064247408,-2500.0,0.00016164,2]
[404332107,1770064247419,-809.50611672,0.00016164,2]
[404332108,1770064247428,-1018.20605405,0.00016164,2]
[404332109,1770064247438,-473.78998774,0.00016164,2]
[404332110,1770064247447,-5000.00961289,0.000162,5]
[404332111,1770064247456,-360.21,0.00016308,2]
[404332112,1770064247466,-200.0,0.0001634,2]
[404332113,1770064247475,-187.78006525,0.00016348,2]
[404332114,1770064247484,-225.18697532,0.00016348,2]
[404332115,1770064247494,-230.16041742,0.00016348,2]
[404332116,1770064247503,-1536.04360649,0.00016348,2]
[404332117,1770064247512,-374.89,0.00016359,2]
[404332118,1770064247522,-500.0,0.00016407,2]
[404332119,1770064247531,-159.60859955,0.00016419,2]
[404332120,1770064247541,-181.60743456,0.00016423,2]
[404332121,1770064247550,-155.0,0.00016436,2]
[404332122,1770064247559,-1894.56667805,0.00016438,2]
[404332123,1770064247569,-150.25668222,0.00016438,2]
[404332124,1770064247578,-800.0,0.00016438,2]
[404332125,1770064247587,-1725.59276534,0.00016444,2]
[404332126,1770064247597,-150.0,0.00016473,2]
[404332127,1770064247607,-2129.0,0.00016485,2]
[404332128,1770064247616,-569.72,0.000165,2]
[404332129,1770064247626,-1000.0,0.00016515,2]
[404332130,1770064247636,-6453.0,0.00016562,2]
[404332131,1770064247647,-500.0,0.00016568,2]
[404332132,1770064247657,-500.0,0.00016568,2]
[404332133,1770064247666,-1501.43163729,0.00016568,2]
[404332134,1770064247675,-500.0,0.00016568,2]
[404332135,1770064247685,-191.30611065,0.00016568,2]
[404332136,1770064247695,-1500.0,0.00016568,2]
[404332137,1770064247705,-500.0,0.00016568,2]
[404332138,1770064247716,-368.88723017,0.00016568,2]
[404332139,1770064247726,-432.32446254,0.00016568,2]
[404332140,1770064247735,-1500.0,0.00016568,2]
[404332141,1770064247744,-500.0,0.00016568,2]
[404332142,1770064247753,-503.70343212,0.00016568,2]
[404332143,1770064247763,-225.55346155,0.00016568,2]
[404332144,1770064247773,-1501.04497332,0.00016568,2]
[404332145,1770064247782,-500.0,0.00016568,2]
[404332146,1770064247793,-500.0,0.00016568,2]
[404332147,1770064247803,-1002.44429427,0.00016568,2]
[404332148,1770064247813,-1500.0,0.00016568,2]
[404332149,1770064247822,-1003.56470175,0.00016568,2]
[404332150,1770064247836,-503.30357537,0.00016568,2]
[404332151,1770064247847,-385.68955508,0.00016568,2]
[404332152,1770064247856,-408.63714551,0.00016568,2]
[404332153,1770064247865,-360.77468192,0.000166,2]
[404332154,1770064247875,-334.5472959,0.00016621,2]
[404332155,1770064247884,-3000.0,0.00016712,2]
[404332156,1770064247894,-3000.0,0.00016712,2]
[404332157,1770064247906,-2016.45192786,0.00016712,2]
[404332158,1770064247915,-165.79,0.00016712,2]
[404332159,1770064247924,-46768.2618756,0.00016755,2]
[404332160,1770064247933,-267.0500664,0.00016812,2]
[404332161,1770064247944,-500.0,0.00016817,2]
[404332162,1770064247956,-194.72792766,0.00016896,2]
[404332163,1770064247966,-233.51889341,0.00016896,2]
[404332164,1770064247976,-1592.87721993,0.00016896,2]
[404332165,1770064247986,-500.0,0.00016955,2]
[404332166,1770064247997,-328.27626752,0.00017,3]
[404332167,1770064248007,-970812.16483943,0.00017,2]
[404332168,1770064248019,-300.0,0.00017021,2]
[404332169,1770064248032,-181.63,0.00017059,2]
[404332170,1770064248042,-1000.0,0.00017112,2]
[404332171,1770064248054,-500.0,0.00017116,2]
[404332172,1770064248065,-2000.0,0.00017116,2]
[404332173,1770064248075,-1000.0,0.00017116,2]
[404332174,1770064248086,-159.60859955,0.00017201,2]
[404332175,1770064248096,-3500.0,0.0001726,2]
[404332176,1770064248105,-475.39944629,0.0001726,2]
[404332177,1770064248115,-163.0,0.0001736,2]
[404332178,1770064248125,-201.93286099,0.00017444,2]
[404332179,1770064248134,-242.15909246,0.00017444,2]
[404332180,1770064248143,-1651.81367706,0.00017444,2]
[404332181,1770064248155,-13442.50995431,0.000175,2]
[404332182,1770064248165,-500.0,0.00017503,2]
[404332183,1770064248174,-718.43917855,0.00017534,2]
[404332184,1770064248184,-46768.2618756,0.00017564,2]
[404332185,1770064248194,-450.0,0.00017568,2]
[404332186,1770064248203,-315.0,0.000176,2]
[404332187,1770064248213,-4904.0,0.00017659,2]
[404332188,1770064248222,-4904.0,0.00017664,2]
[404332189,1770064248235,-2500.0,0.00017664,2]
[404332190,1770064248244,-1000.0,0.00017691,2]
[404332191,1770064248253,-1000.0,0.00017709,2]
[404332192,1770064248263,-500.0,0.00017726,2]
[404332193,1770064248272,-4904.0,0.00017734,2]
[404332194,1770064248281,-4904.0,0.00017734,2]
[404332195,1770064248291,-521.7,0.0001774,2]
[404332196,1770064248300,-565.72,0.0001774,2]
[404332197,1770064248310,-1235.79,0.0001774,2]
[404332198,1770064248319,-639.93,0.0001774,2]
[404332199,1770064248328,-596.97,0.0001774,2]
[404332200,1770064248337,-642.09,0.0001774,2]
[404332201,1770064248348,-626.72,0.0001774,2]
[404332202,1770064248358,-4904.0,0.0001774,2]
[404332203,1770064248367,-4904.0,0.00017785,2]
[404332204,1770064248376,-502.14782899,0.000178,3]
[404332205,1770064248387,-4000.0,0.00017808,2]
[404332206,1770064248396,-271.46575438,0.00017828,2]
[404332207,1770064248405,-25000.0,0.00017886,3]
[404332208,1770064248416,-189.8964064,0.00017888,2]
[404332209,1770064248426,-25000.0,0.00017894,3]
[404332210,1770064248438,-500.0,0.000179,2]
[404332211,1770064248448,-267.0500664,0.000179,2]
[404332212,1770064248458,-20453.46079029,0.000179,3]
[404332213,1770064248468,-3280.56144331,0.000179,2]
[404332214,1770064248478,-25000.0,0.00017903,3]
[404332215,1770064248487,-25000.0,0.00017912,3]
[404332216,1770064248497,-3253.0,0.00017919,2]
[404332217,1770064248506,-423.036,0.00017919,2]
[404332218,1770064248518,-2465.108,0.00017919,2]
[404332219,1770064248527,-839.0,0.0001792,2]
[404332220,1770064248536,-25000.0,0.00017921,3]
[404332221,1770064248546,-379.81,0.00017925,2]
[404332222,1770064248555,-25000.0,0.0001793,3]
[404332223,1770064248564,-25000.0,0.00017938,3]
[404332224,1770064248573,-4904.0,0.0001794,2]
[404332225,1770064248582,-25000.0,0.00017947,3]
[404332226,1770064248591,-379.81,0.0001795,2]
[404332227,1770064248600,-25000.0,0.00017956,3]
[404332228,1770064248610,-25000.0,0.00017965,3]
[404332229,1770064248619,-25000.0,0.00017974,3]
[404332230,1770064248629,-25000.0,0.00017982,3]
[404332231,1770064248639,-159.60859955,0.00017982,2]
[404332232,1770064248650,-28573.59028773,0.0001799,3]
[404332233,1770064248660,-346.92554585,0.0001799,2]
[404332234,1770064248670,-25000.0,0.00017991,3]
[404332235,1770064248679,-599.60298507,0.00017991,2]
[404332236,1770064248688,-747.8093786,0.00017991,2]
[404332237,1770064248698,-209.40437684,0.00017992,2]
[404332238,1770064248707,-251.11897888,0.00017992,2]
[404332239,1770064248717,-1712.93078312,0.00017992,2]
[404332240,1770064248726,-300.0,0.00017999,2]
[404332241,1770064248735,-300.0,0.00017999,2]
[404332242,1770064248745,-300.0,0.00017999,2]
[404332243,1770064248754,-300.0,0.00017999,2]
[404332244,1770064248764,-666.0,0.00017999,2]
[404332245,1770064248773,-150.0,0.00018,7]
[404332246,1770064248783,-25000.0,0.00018,3]
[404332247,1770064248794,-2795959.70718181,0.00018,2]
[404332248,1770064249137,-3557.83562371,0.00018,2]
[404332249,1770064249150,-613.90959959,0.00018,2]
[404332250,1770064249162,-3440.51764914,0.00018,2]
[404332251,1770064249353,-3518.726,0.00017919,2]
[404332252,1770064249363,-2646412.52575524,0.00018,2]
[404332253,1770064249375,-2179.26069336,0.00018,2]
[404332254,1770064249387,-615.00501975,0.00018,2]
[404332255,1770064251117,-1.7e-07,0.00018,2]
[404332256,1770064251130,-7548.64,0.00018,2]
[404332257,1770064251174,-3214.30239313,0.00011757,2]
[404332258,1770064251184,-1498.1621395,0.00011757,2]
[404332259,1770064251196,-60729.21477725,0.00011757,2]
[404332260,1770064251205,-608952.58702638,0.00018,2]
[404332261,1770064251216,-838.48,0.00018,2]